bitfinex/quotes_ETHUSD_20250123
["timestamp","ask_amount","ask_price","bid_price","bid_amount"]
[1737649230445,0.3619,3269.5,3268.0,3.05989]
[1737649230592,0.3619,3269.5,3266.8,9.56105]
[1737649230593,0.3619,3269.1,3267.5,3.2299881]
[1737649230795,0.3619,3269.1,3267.6,0.32299881]
[1737649230993,0.3619,3269.1,3267.8,3.06007]
[1737649231195,0.3619,3269.1,3267.6,0.32299881]
[1737649231436,0.3619,3269.1,3268.6,3.05941]
[1737649231437,0.59982327,3268.7,3268.6,3.05941]
[1737649231648,0.62513949,3269.1,3267.8,3.0]
[1737649231813,0.3619,3269.8,3269.2,3.05884]
[1737649232132,0.3619,3269.8,3269.1,3.05889]
[1737649232343,0.3619,3269.8,3268.5,1.6401]
[1737649232506,0.3619,3269.8,3269.2,0.05465326]
[1737649232713,0.3619,3269.8,3268.0,3.05997]
[1737649232909,0.3619,3269.8,3269.3,0.0599379]
[1737649233107,0.3619,3269.8,3267.9,5.209163]
[1737649233321,3.0,3269.6,3267.9,3.666063]
[1737649233544,0.3619,3269.8,3268.2,3.05976]
[1737649233696,3.3619,3269.8,3268.0,0.06023089]
[1737649234036,0.62416109,3269.4,3268.9,3.05911]
[1737649234242,0.3619,3269.8,3269.7,0.55]
[1737649234437,4.46891201,3271.9,3269.7,0.55]
[1737649234438,0.51723997,3271.3,3269.7,3.11778101]
[1737649234661,0.3619,3271.3,3270.0,3.05808]
[1737649234860,0.60483759,3270.7,3270.1,0.05916132]
[1737649235062,0.3619,3270.6,3269.4,3.05859]
[1737649235267,0.3619,3270.6,3269.5,0.05929084]
[1737649235558,3.0,3270.5,3269.0,3.05902]
[1737649235879,0.60980049,3269.8,3269.1,0.05919608]
[1737649236250,0.60980049,3269.8,3268.8,3.05919]
[1737649236449,0.60980049,3269.8,3268.9,0.05932234]
[1737649236654,0.60980049,3269.8,3269.2,0.55]
[1737649236851,0.3619,3270.6,3269.5,3.05857]
[1737649237065,0.3619,3270.6,3270.0,0.55]
[1737649237291,0.3619,3270.6,3270.1,0.05909096]
[1737649237444,0.3619,3270.6,3270.2,0.55]
[1737649237766,0.3619,3272.0,3270.3,0.05869944]
[1737649237964,0.3619,3272.0,3270.7,0.55]
[1737649238172,0.3619,3272.0,3270.5,0.55]
[1737649238173,0.61420603,3271.1,3270.6,0.55]
[1737649238407,0.3619,3272.0,3271.5,3.05662]
[1737649238672,0.3619,3272.5,3271.8,3.05642]
[1737649238970,0.47114122,3273.6,3271.7,0.55]
[1737649238971,0.3619,3273.1,3272.4,0.55]
[1737649239127,0.3619,3273.1,3272.3,3.05595]
[1737649239128,0.31591855,3273.6,3273.1,3.6052]
[1737649239330,0.31591855,3273.6,3273.1,0.55]
[1737649239537,0.31591855,3273.6,3273.1,0.60779697]
[1737649239743,0.31591855,3273.6,3273.1,3.66299697]
[1737649239940,0.31591855,3273.6,3273.1,4.33483067]
[1737649240228,0.38714881,3273.2,3273.1,5.86493067]
[1737649240421,0.31591855,3273.6,3273.5,3.05483]
[1737649240626,0.31591855,3273.6,3273.5,3.66100956]
[1737649240820,0.61536861,3274.8,3274.3,0.55]
[1737649241032,0.3619,3275.2,3273.1,2.2019337]
[1737649241033,0.3619,3275.2,3274.5,0.55]
[1737649241266,0.3619,3275.2,3274.4,0.41634773]
[1737649241267,0.97353613,3275.2,3274.7,0.55]
[1737649241433,3.05144,3277.2,3274.7,0.55]
[1737649241434,0.3619,3276.0,3275.0,3.05343]
[1737649241644,0.3619,3276.0,3275.2,0.55]
[1737649241862,0.3619,3276.0,3275.3,0.05542936]
[1737649242061,0.3619,3276.0,3273.9,3.05439]
[1737649242062,0.59816062,3275.9,3273.9,3.05439]
[1737649242273,0.59816062,3275.9,3274.5,0.21119598]
[1737649242479,0.59816062,3275.9,3274.6,3.60377]
[1737649242685,0.59816062,3275.9,3274.6,0.55]
[1737649242887,3.0,3275.6,3274.7,0.05154026]
[1737649243188,3.0,3275.4,3274.7,0.05154026]
[1737649243481,0.3619,3276.0,3273.7,0.55]
[1737649243788,3.3619,3274.6,3273.1,7.1718337]
[1737649243940,0.3619,3274.6,3273.8,0.05079794]
[1737649244135,0.3619,3274.6,3272.8,4.6313]
[1737649244375,0.60267965,3274.4,3272.8,4.68677]
[1737649244644,3.05263,3275.9,3272.8,4.68677]
[1737649244645,0.3619,3275.5,3272.9,3.10462189]
[1737649244954,0.6144047,3274.8,3273.3,3.05497]
[1737649245336,3.0,3274.7,3273.4,0.04928589]
[1737649245581,0.6144047,3274.8,3273.4,0.04928589]
[1737649245736,3.05372,3274.7,3273.4,0.04928589]
[1737649245967,0.6144047,3274.8,3273.1,0.55]
[1737649246318,0.6144047,3274.8,3273.2,0.45739366]
[1737649246474,6.0541,3274.3,3273.2,0.04950744]
[1737649246677,0.60371781,3273.9,3272.8,1.6313]
[1737649246896,0.60371781,3273.9,3273.3,0.04936406]
[1737649247068,0.60371781,3273.9,3272.8,1.6313]
[1737649247280,3.05403,3274.4,3273.0,0.55]
[1737649247474,3.0,3274.6,3273.0,0.55]
[1737649247475,0.3619,3274.7,3273.5,3.05479]
[1737649247832,0.3619,3276.0,3274.1,2.1341]
[1737649247974,3.05344,3275.0,3273.6,0.04909242]
[1737649248179,3.0,3274.6,3274.2,0.04895986]
[1737649248436,3.0,3274.4,3272.9,1.66673]
[1737649248591,0.3619,3274.9,3273.0,0.166673]
[1737649248786,0.3619,3274.9,3273.0,0.21630918]
[1737649249000,0.59785528,3274.8,3273.0,0.21630918]
[1737649249318,3.0,3274.0,3273.0,0.04963618]
[1737649249550,0.62576334,3273.8,3273.0,0.04963618]
[1737649249718,3.55217,3276.4,3273.3,3.05501]
[1737649249880,4.94023043,3276.6,3273.0,0.04963618]
[1737649249881,3.0,3275.3,3273.8,0.55]
[1737649250083,3.0,3275.3,3273.7,3.05461]
[1737649250084,3.6033985,3274.7,3273.9,0.40997107]
[1737649250421,3.6033985,3274.7,3272.9,1.5036]
[1737649250422,3.0,3274.7,3272.9,1.5036]
[1737649250625,0.60028284,3274.2,3272.9,1.5036]
[1737649250805,3.05338,3275.1,3272.9,1.5036]
[1737649250806,3.0,3275.0,3273.1,3.05514]
[1737649251016,0.61189019,3274.5,3273.0,0.04962926]
[1737649251192,0.61189019,3274.5,3272.9,1.5036]
[1737649251193,0.61189019,3274.5,3273.2,0.04958503]
[1737649251397,0.61189019,3274.5,3272.9,1.5036]
[1737649251608,0.61189019,3274.5,3273.3,0.04942585]
[1737649251829,0.61189019,3274.5,3273.0,0.50539418]
[1737649252011,0.61189019,3274.5,3273.4,0.04940374]
[1737649252218,0.61189019,3274.5,3273.4,0.55]
[1737649252531,0.61189019,3274.5,3273.6,0.55]
[1737649253025,0.61189019,3274.5,3273.9,3.209]
[1737649253192,0.61189019,3274.5,3273.8,0.55]
[1737649253379,3.05297,3275.5,3274.1,0.55]
[1737649253628,3.05241,3276.1,3274.3,3.60399]
[1737649253847,3.0,3275.9,3274.3,0.55]
[1737649254075,0.62435281,3275.2,3274.6,3.209]
[1737649254369,0.3119,3275.4,3274.7,0.04932088]
[1737649254577,3.05283,3275.7,3274.7,0.04932088]
[1737649254728,3.05283,3275.7,3274.2,0.55]
[1737649254928,3.0,3275.6,3274.8,0.04944589]
[1737649255124,0.59747264,3275.1,3274.8,0.55]
[1737649255371,0.59747264,3275.1,3274.1,1.6368]
[1737649255372,0.59747264,3275.1,3274.9,0.04942381]
[1737649255670,3.0,3274.9,3273.6,4.6528]
[1737649255834,3.59747264,3275.1,3273.7,3.1043571]
[1737649256031,0.59747264,3275.1,3274.1,0.55]
[1737649256252,0.59747264,3275.1,3274.2,3.209]
[1737649256581,0.59747264,3275.1,3274.5,3.759]
[1737649257071,3.05244,3276.1,3274.7,3.759]
[1737649257287,3.05244,3276.1,3274.9,3.759]
[1737649257485,3.0,3275.9,3275.1,0.55]
[1737649257696,3.0,3275.9,3275.2,0.04893397]
[1737649257849,0.61514874,3275.4,3275.2,0.04893397]
[1737649258049,0.3119,3276.8,3275.5,3.05291]
[1737649258263,0.60354331,3276.4,3276.3,0.55]
[1737649258479,0.98950514,3277.7,3276.7,3.05178]
[1737649258649,0.98950514,3277.7,3276.8,0.59848639]
[1737649259070,0.98950514,3277.7,3277.0,6.26054]
[1737649259403,2.15627186,3278.3,3276.3,3.467391]
[1737649259404,1.87001235,3278.3,3277.3,3.759]
[1737649259556,0.62260065,3278.0,3277.3,6.81026]
[1737649259750,1.87001235,3278.3,3277.8,3.209]
[1737649259947,1.87001235,3278.3,3277.9,0.55]
[1737649260201,1.87001235,3278.3,3277.9,0.59664557]
[1737649260405,1.87001235,3278.3,3278.1,0.55]
[1737649260551,1.87001235,3278.3,3278.2,6.80945]
[1737649260757,1.87001235,3278.3,3278.2,7.84171263]
[1737649261104,1.87001235,3278.3,3278.2,4.79126263]
[1737649261451,1.87001235,3278.3,3278.2,3.80525863]
[1737649261909,0.61588171,3279.2,3278.2,3.80525863]
[1737649262120,0.35750976,3279.3,3278.2,0.04625863]
[1737649262252,3.0,3279.3,3278.2,0.04625863]
[1737649262448,3.0,3278.7,3278.2,0.04625863]
[1737649262652,3.0,3278.7,3277.0,4.61397]
[1737649262653,3.0,3278.3,3277.0,1.5624]
[1737649262854,3.0,3278.4,3277.1,0.19955342]
[1737649263049,3.05084,3277.8,3277.1,0.04331342]
[1737649263254,3.0,3277.2,3275.6,1.6524]
[1737649263500,3.0,3276.6,3276.0,0.04365185]
[1737649263803,0.3119,3277.3,3275.6,1.6524]
[1737649264116,0.61850952,3277.1,3276.0,0.04220343]
[1737649264395,3.0,3276.9,3276.0,0.35167977]
[1737649264615,3.0,3276.4,3276.0,0.04220343]
[1737649264776,6.0524,3276.1,3276.0,0.04220343]
[1737649264955,3.0,3275.9,3274.4,1.5427]
[1737649265301,3.0526,3275.9,3274.4,4.59663]
[1737649265458,3.0,3275.5,3274.5,0.50001159]
[1737649265796,0.60576115,3275.5,3274.5,0.04034859]
[1737649266092,3.3119,3276.1,3274.6,0.55]
[1737649266298,3.3119,3276.1,3274.7,3.09321702]
[1737649266504,3.36433,3276.1,3274.7,0.03951702]
[1737649266716,0.61423973,3275.6,3274.7,0.03951702]
[1737649267061,0.3119,3276.1,3273.2,1.5455]
[1737649267062,3.0,3275.3,3273.2,1.5455]
[1737649267263,0.60948197,3274.5,3273.3,0.15455]
[1737649267458,3.66342197,3274.5,3273.3,0.19352415]
[1737649267694,0.60948197,3274.5,3273.3,0.19352415]
[1737649267859,3.0,3274.3,3273.3,0.19352415]
[1737649268062,3.0,3274.1,3273.3,0.03897415]
[1737649268357,0.3119,3273.6,3272.0,3.05623]
[1737649268564,0.3119,3273.6,3272.2,3.05602]
[1737649268762,3.05511,3273.2,3272.1,0.03576328]
[1737649268958,0.3119,3273.6,3272.3,0.035719]
[1737649268959,3.0,3273.0,3272.3,0.035719]
[1737649269210,3.05495,3273.4,3271.9,1.6316]
[1737649269211,0.60612353,3272.9,3272.2,0.03574114]
[1737649269508,0.60612353,3272.9,3272.3,0.03498594]
[1737649269820,3.60612353,3272.9,3271.3,4.65319]
[1737649269962,3.0,3272.2,3270.7,1.5964]
[1737649270162,3.05623,3272.0,3271.4,0.03651154]
[1737649270402,3.0,3272.2,3270.7,1.5964]
[1737649270614,0.60917798,3272.0,3270.9,3.05725]
[1737649270772,0.3119,3272.9,3270.9,3.05726]
[1737649270974,0.3119,3272.9,3271.8,3.05639]
[1737649271175,0.3119,3273.6,3272.1,3.05612]
[1737649271480,0.3119,3273.6,3272.2,0.5850926]
[1737649271481,3.0,3273.3,3272.2,0.5850926]
[1737649271697,3.65708296,3272.8,3272.2,0.0350926]
[1737649271900,3.65708296,3272.8,3271.0,3.36643205]
[1737649271901,0.60160296,3272.8,3271.0,3.36643205]
[1737649272118,3.0,3272.5,3271.1,0.33664321]
[1737649272271,0.3119,3272.4,3271.1,0.03548724]
[1737649272485,0.3119,3272.4,3270.7,4.65383]
[1737649272715,3.0,3272.8,3270.8,0.03535801]
[1737649272931,0.3119,3273.0,3271.6,0.55]
[1737649273239,3.05493,3273.4,3271.9,0.55]
[1737649273389,3.0,3273.4,3272.0,0.21058]
[1737649273592,3.0,3273.4,3272.0,0.2446343]
[1737649273904,3.05514,3273.2,3272.1,0.58386411]
[1737649274304,0.60642898,3273.3,3272.1,0.58386411]
[1737649274516,0.60642898,3273.3,3272.1,0.03386411]
[1737649274839,3.05528,3273.1,3272.1,0.03386411]
[1737649275002,0.60642898,3273.3,3272.1,0.03386411]
[1737649275205,0.60642898,3273.3,3270.1,1.6446]
[1737649275206,0.3119,3272.4,3270.1,1.6446]
[1737649275520,3.05643,3271.8,3270.2,0.84806569]
[1737649275827,0.59799872,3272.2,3270.2,0.84806569]
[1737649276031,3.65413872,3272.2,3270.6,3.05751]
[1737649276215,0.59799872,3272.2,3270.2,0.84806569]
[1737649276424,3.36717,3273.1,3271.0,3.05711]
[1737649276623,3.0,3272.9,3271.2,0.55]
[1737649276843,3.0553,3273.0,3271.2,0.55]
[1737649277132,3.0,3272.8,3271.3,0.03138661]
[1737649277341,3.05628,3272.0,3271.3,0.03138661]
[1737649277628,3.0553,3273.0,3270.6,1.6208]
[1737649277829,0.60495479,3272.0,3270.7,0.467838]
[1737649278033,3.0,3271.7,3270.7,0.49890234]
[1737649278191,3.0,3271.7,3270.7,0.03106434]
[1737649278393,3.0,3271.5,3270.7,0.03106434]
[1737649278593,3.3119,3271.8,3270.7,0.03106434]
[1737649278594,0.3119,3271.8,3270.7,0.03106434]
[1737649279132,0.3119,3272.5,3270.7,0.03106434]
[1737649279338,3.36722,3273.0,3271.5,0.55]
[1737649279545,6.05541,3272.9,3271.5,0.55]
[1737649279693,6.05541,3272.9,3271.6,0.03060078]
[1737649279896,0.3119,3273.0,3271.7,3.6065]
[1737649280099,0.3119,3273.0,3271.6,0.33933686]
[1737649280100,0.3119,3273.7,3271.9,3.60631]
[1737649280405,0.61143405,3273.0,3272.1,0.55]
[1737649280808,0.61143405,3273.0,3272.2,0.03342876]
[1737649281005,0.3119,3273.7,3272.2,0.55]
[1737649281208,10.13807633,3274.6,3272.7,0.55]
[1737649281209,0.3119,3274.3,3272.7,0.55]
[1737649281419,0.59743641,3273.6,3273.0,3.60528]
[1737649281624,3.05392,3274.5,3272.8,3.30929085]
[1737649281842,3.0,3274.5,3273.2,0.55]
[1737649281994,3.1232995,3274.6,3273.6,0.55]
[1737649282196,0.61002817,3274.3,3273.4,0.55]
[1737649282399,0.61002817,3274.3,3273.8,2.1258]
[1737649282709,3.05437,3274.0,3273.9,0.03353961]
[1737649282917,0.61002817,3274.3,3272.7,1.6411]
[1737649283225,3.0,3273.1,3272.9,0.0337661]
[1737649283408,6.0553,3273.0,3272.9,0.0337661]
[1737649283742,0.60926706,3273.0,3271.8,1.6411]
[1737649284105,0.60926706,3273.0,3271.9,0.03399541]
[1737649284314,3.0,3273.3,3272.0,0.55]
[1737649284637,3.61183445,3273.4,3272.2,0.55]
[1737649284808,0.61183445,3273.4,3272.2,0.55]
[1737649285017,3.05459,3273.8,3272.4,0.55]
[1737649285216,3.05459,3273.8,3272.3,0.03386924]
[1737649285217,0.3119,3274.7,3272.6,0.55]
[1737649285449,3.05409,3274.3,3272.8,3.60541]
[1737649285757,0.61513539,3274.2,3273.7,0.55]
[1737649285966,3.4351995,3275.2,3273.5,0.55]
[1737649286105,6.05345,3275.0,3273.8,0.03334561]
[1737649286448,6.05345,3275.0,3273.7,0.55]
[1737649286449,0.6108564,3274.6,3273.7,0.55]
[1737649286605,6.1766695,3275.1,3273.9,0.55]
[1737649286802,3.0,3275.0,3273.8,0.24144561]
[1737649287103,3.05398,3274.5,3273.6,1.531]
[1737649287304,3.1232995,3275.1,3273.7,0.03350146]
[1737649287559,0.6162357,3274.7,3273.8,0.55]
[1737649287846,3.1232995,3275.1,3274.0,0.55]
[1737649288008,0.60199277,3275.0,3274.0,0.55]
[1737649288203,3.05395,3274.5,3274.1,0.03226001]
[1737649288452,3.05403,3274.4,3273.6,1.531]
[1737649288744,3.05429,3274.1,3273.6,1.531]
[1737649288948,3.0,3274.3,3272.8,1.5803]
[1737649289134,0.3119,3274.6,3272.8,1.759752]
[1737649289135,6.05474,3273.6,3272.8,1.759752]
[1737649289337,3.05361,3274.9,3272.9,0.02992955]
[1737649289338,3.05356,3274.9,3272.9,0.02992955]
[1737649289534,0.61715262,3274.6,3273.4,3.05488]
[1737649289843,0.61715262,3274.6,3273.0,1.5714]
[1737649289844,3.0,3274.4,3273.0,1.5714]
[1737649290047,3.05474,3273.6,3273.5,0.02975426]
[1737649290358,3.0,3273.0,3272.2,1.5832]
[1737649290510,3.05537,3273.0,3272.2,2.39152]
[1737649290843,3.3119,3274.0,3272.3,0.02841022]
[1737649290844,3.0,3273.1,3272.3,0.02841022]
[1737649291060,3.05448,3273.9,3272.6,0.55]
[1737649291260,3.05438,3274.0,3272.6,3.60564]
[1737649291415,0.62552883,3274.1,3272.9,0.55]
[1737649291773,3.0,3274.2,3273.1,0.55]
[1737649292056,3.66374471,3274.3,3273.0,0.54831678]
[1737649292057,3.05472,3273.7,3273.0,0.54831678]
[1737649292257,3.05472,3273.7,3272.8,1.5937]
[1737649292258,3.05502,3273.3,3273.2,0.02831925]
[1737649292467,6.05511,3273.2,3273.1,0.02833682]
[1737649292676,3.0,3272.5,3272.2,1.6125]
[1737649292965,3.0,3273.0,3271.7,36.5253]
[1737649293163,3.0547,3273.7,3271.7,36.5253]
[1737649293164,0.3119,3273.8,3272.3,0.02870197]
[1737649293330,0.60555149,3273.6,3272.4,2.1741]
[1737649293533,0.60555149,3273.6,3272.5,0.02813456]
[1737649293534,3.0,3273.2,3272.5,0.02813456]
[1737649293748,3.0,3273.2,3270.1,3.05794]
[1737649293749,0.62106905,3272.7,3270.7,1.5378]
[1737649294062,0.3119,3273.5,3271.2,0.55]
[1737649294063,3.3119,3273.5,3271.2,0.55]
[1737649294226,3.0,3272.5,3270.9,1.5378]
[1737649294427,3.05558,3272.7,3271.3,0.0277635]
[1737649294633,3.0,3272.3,3270.9,1.5378]
[1737649295062,3.0,3272.3,3271.0,0.02775424]
[1737649295221,3.0,3271.9,3271.0,0.02775424]
[1737649295426,3.05663,3271.6,3271.0,0.19968766]
[1737649295614,3.05643,3271.8,3271.0,0.19968766]
[1737649295813,3.05614,3272.1,3271.0,0.19968766]
[1737649296017,3.0,3271.6,3271.0,0.19968766]
[1737649296218,3.05563,3272.7,3271.0,0.19968766]
[1737649296444,3.05563,3272.7,3271.2,0.55]
[1737649296445,3.05633,3271.9,3271.2,0.55]
[1737649296682,3.0,3271.8,3271.2,0.55]
[1737649296883,3.0,3271.8,3271.3,0.02778662]
[1737649297162,3.0,3271.4,3270.9,1.5378]
[1737649297319,3.0,3271.6,3270.9,1.5378]
[1737649297524,3.05625,3272.0,3271.0,0.18160885]
[1737649297720,3.0,3271.9,3271.1,0.55]
[1737649297936,3.0,3271.7,3271.2,0.02774202]
[1737649298168,3.0,3271.9,3271.2,0.02774202]
[1737649298355,3.96094683,3273.1,3271.2,0.02774202]
[1737649298672,6.05628,3272.0,3271.2,0.02774202]
[1737649298902,3.05567,3272.6,3271.4,3.05679]
[1737649298903,0.61357195,3272.6,3271.4,3.05679]
[1737649299087,3.05538,3273.0,3271.8,0.55]
[1737649299284,3.0,3272.7,3272.0,0.55]
[1737649299584,3.05544,3272.9,3272.1,0.0275145]
[1737649299896,3.05548,3272.8,3272.1,0.0275145]
[1737649300103,0.59712443,3272.9,3272.1,0.0275145]
[1737649300280,3.65253443,3272.9,3272.3,0.55]
[1737649300456,3.1232995,3273.6,3272.3,3.65202562]
[1737649300652,3.05551,3272.8,3272.4,0.02731082]
[1737649301195,3.1232995,3273.6,3272.5,0.02761098]
[1737649301404,3.1232995,3273.6,3273.1,3.05516]
[1737649301571,3.1232995,3273.6,3272.7,0.55]
[1737649301767,3.1232995,3273.6,3273.2,0.02739824]
[1737649301975,3.1232995,3273.6,3273.4,1.5033]
[1737649302305,1.4566995,3274.4,3273.7,0.55]
[1737649302540,1.4566995,3274.4,3274.3,3.05408]
[1737649302663,1.4566995,3274.4,3274.3,5.16058]
[1737649302858,1.4566995,3274.4,3274.3,6.00914753]
[1737649303103,1.6211,3276.3,3274.4,0.55]
[1737649303394,3.6580519,3275.5,3274.5,0.02908451]
[1737649303604,0.6050119,3275.5,3274.5,35.02908451]
[1737649303795,3.0538,3274.6,3274.5,35.02908451]
[1737649303957,6.0538,3274.6,3274.5,0.02908451]
[1737649304994,3.0,3273.5,3273.0,1.6355]
[1737649305198,6.05488,3273.5,3273.1,0.16355]
[1737649305398,6.05465,3273.7,3273.1,0.16355]
[1737649305607,3.0,3273.2,3272.0,1.6506]
[1737649305764,3.0,3274.0,3272.0,1.6506]
[1737649306100,6.05587,3272.4,3272.0,1.6506]
[1737649306359,3.0,3272.4,3272.0,1.6506]
[1737649306504,3.0,3272.9,3272.0,1.6506]
[1737649306707,3.0,3272.9,3270.7,9.55743]
[1737649306708,3.0,3272.1,3270.8,1.6096]
[1737649306912,3.0553,3273.0,3271.1,35.0]
[1737649307108,3.05594,3272.4,3271.1,35.0]
[1737649307312,4.10961057,3273.6,3271.1,35.0]
[1737649307313,3.0,3272.2,3271.1,35.0]
[1737649307496,3.05577,3272.5,3271.2,1.6096]
[1737649307810,3.05536,3273.0,3271.8,1.6096]
[1737649307976,3.0,3272.7,3271.9,0.16096]
[1737649308512,6.05559,3272.7,3271.9,0.16096]
[1737649308820,3.0,3272.4,3271.8,1.6096]
[1737649308972,6.05632,3271.9,3271.8,1.6096]
[1737649309321,3.0,3271.4,3271.0,1.5639]
[1737649309489,6.05662,3271.6,3271.0,36.5639]
[1737649309676,3.05667,3271.6,3271.0,36.5639]
[1737649309870,3.05667,3271.6,3271.1,0.37780966]
[1737649310107,3.05651,3271.7,3271.0,1.5639]
[1737649310272,3.05719,3271.0,3270.7,0.005]
[1737649310511,0.61591259,3271.9,3270.7,0.005]
[1737649310512,3.05643,3271.8,3270.7,0.005]
[1737649310684,0.61591259,3271.9,3270.8,35.0]
[1737649311170,3.05573,3272.6,3270.8,35.0]
[1737649311171,1.5614,3273.0,3271.0,0.55]
[1737649311370,1.5614,3273.0,3270.7,0.005]
[1737649311371,3.05569,3272.6,3271.4,0.55]
[1737649311625,1.5614,3273.5,3271.3,0.55]
[1737649311805,3.05607,3272.2,3271.7,35.0]
[1737649311985,0.60815394,3272.9,3271.2,1.595]
[1737649311986,3.0,3271.8,3271.2,1.595]
[1737649312191,3.05649,3271.8,3271.3,0.55]
[1737649312373,3.0,3272.2,3271.4,35.2145]
[1737649312573,3.05593,3272.4,3271.5,0.55]
[1737649312768,3.05625,3272.0,3271.5,0.55]
[1737649312970,3.0,3271.8,3271.4,35.0]
[1737649313514,0.59800582,3272.7,3271.5,0.55]
[1737649313877,3.05565,3272.7,3271.8,2.2038]
[1737649314037,4.62556,3273.6,3271.8,2.2038]
[1737649314038,3.0,3272.0,3271.8,2.2038]
[1737649314181,3.0,3272.0,3270.7,0.005]
[1737649314182,3.0,3272.0,3271.3,0.55]
[1737649314524,3.0,3271.8,3271.3,0.55]
[1737649314730,3.0,3271.8,3271.2,36.6538]
[1737649314927,3.0,3271.8,3271.2,37.72367468]
[1737649315227,3.05623,3272.0,3271.3,0.55]
[1737649315398,3.05639,3271.9,3271.3,0.55]
[1737649315598,0.61335027,3272.1,3271.3,0.55]
[1737649315927,3.0,3272.0,3271.3,0.55]
[1737649316129,0.61335027,3272.1,3271.4,3.10202562]
[1737649316307,3.0,3271.4,3271.2,37.72367468]
[1737649316643,0.59659975,3271.9,3271.2,2.72367468]
[1737649316794,0.59659975,3271.9,3270.7,0.005]
[1737649316795,3.0,3271.0,3270.7,0.005]
[1737649316989,3.05735,3270.8,3270.7,0.005]
[1737649317210,3.05728,3270.9,3270.7,0.005]
[1737649317434,3.0,3271.9,3270.8,0.55]
[1737649317632,1.90565471,3272.5,3270.8,0.55]
[1737649317944,3.0,3272.1,3271.0,0.55]
[1737649318102,0.617813,3272.1,3271.1,0.02897531]
[1737649318308,1.90565471,3272.5,3271.1,0.02897531]
[1737649318515,4.96144471,3272.5,3271.2,0.55]
[1737649318717,1.90565471,3272.5,3271.4,0.55]
[1737649319017,1.90565471,3272.5,3271.7,0.55]
[1737649319216,3.0,3272.4,3271.6,1.5129]
[1737649319528,2.50722465,3272.5,3271.6,1.5129]
[1737649319529,1.90565471,3272.5,3271.7,0.55]
[1737649320117,3.05555,3272.8,3271.6,1.5129]
[1737649320336,3.0,3272.5,3271.6,1.5129]
[1737649320502,3.05516,3273.2,3271.6,1.5129]
[1737649320503,3.0,3272.6,3271.7,3.10202562]
[1737649320702,3.0,3272.7,3271.8,0.55]
[1737649320898,3.05558,3272.7,3271.8,0.55]
[1737649321106,3.05531,3273.0,3272.0,0.55]
[1737649321402,3.05531,3273.0,3271.8,0.55]
[1737649321403,1.5232,3272.9,3271.8,0.55]
[1737649321557,3.0,3272.3,3271.0,1.508]
[1737649321714,0.61899346,3272.5,3271.1,3.2439044]
[1737649322054,0.61899346,3272.5,3271.6,0.55]
[1737649322222,3.05542,3272.9,3271.6,0.55]
[1737649322223,3.05541,3272.9,3271.6,3.6066]
[1737649322424,3.0,3272.7,3271.5,0.55]
[1737649322643,3.05488,3273.5,3272.3,0.55]
[1737649322644,3.05486,3273.5,3272.3,0.55]
[1737649322974,3.05486,3273.5,3272.7,0.55]
[1737649323142,1.6578,3274.3,3272.7,0.55]
[1737649323470,3.84008926,3274.9,3271.2,7.0]
[1737649323471,3.0,3272.9,3271.4,1.5767]
[1737649323628,3.0,3272.9,3271.2,6.5]
[1737649323629,3.0,3271.7,3271.2,6.5]
[1737649323830,0.6103734,3272.0,3271.1,0.1869244]
[1737649324027,3.05615,3272.1,3271.1,0.1869244]
[1737649324226,1.5707,3272.8,3270.9,1.5767]
[1737649324227,3.0,3271.6,3270.9,1.5767]
[1737649324475,3.05716,3271.0,3270.3,1.5573]
[1737649324634,3.05735,3270.8,3270.3,1.5573]
[1737649324828,3.05735,3270.8,3269.4,3.47529667]
[1737649324829,3.0,3270.8,3269.6,1.5573]
[1737649325036,3.0,3270.8,3269.6,4.61577]
[1737649325239,3.0,3270.8,3269.6,1.5573]
[1737649325651,3.0,3270.8,3269.7,3.05831]
[1737649325853,3.0,3270.8,3269.6,1.5573]
[1737649326256,3.0,3270.8,3270.7,0.555]
[1737649326536,3.0,3270.8,3270.7,0.005]
[1737649326754,6.05735,3270.8,3270.7,0.005]
[1737649327047,3.0,3270.8,3270.7,0.005]
[1737649328170,6.05735,3270.8,3270.7,0.005]
[1737649328345,3.0,3270.8,3270.7,0.005]
[1737649328901,6.05735,3270.8,3270.7,0.005]
[1737649329059,3.0,3270.8,3270.7,0.005]
[1737649330276,0.60395421,3271.3,3270.8,0.55]
[1737649330477,1.70970079,3272.7,3271.0,0.55]
[1737649330673,0.614982,3271.8,3271.0,0.55]
[1737649330835,3.0,3271.9,3271.0,0.55]
[1737649331039,4.61519,3272.7,3271.5,0.55]
[1737649331266,3.05633,3271.9,3270.8,1.563]
[1737649331458,0.61803918,3271.8,3270.9,0.1568]
[1737649331651,0.15553602,3272.9,3270.9,0.1568]
[1737649331652,3.05576,3272.6,3271.3,3.05686]
[1737649331839,3.0555,3272.8,3271.5,0.55]
[1737649332038,3.05531,3273.0,3271.5,0.55]
[1737649332236,3.05516,3273.2,3272.0,0.55]
[1737649332482,3.05494,3273.4,3272.3,1.645]
[1737649332781,3.05574,3272.6,3271.0,1.645]
[1737649332942,3.0,3272.6,3271.1,0.55]
[1737649333143,0.43885916,3273.3,3271.8,0.55]
[1737649333144,3.05507,3273.3,3271.8,0.55]
[1737649333345,0.15428759,3274.1,3272.3,0.55]
[1737649333541,1.5282,3274.3,3272.5,0.55]
[1737649333745,0.60342719,3273.1,3272.9,1.645]
[1737649333988,3.0,3273.9,3272.9,1.645]